[Event "Late-Titled-Tuesday-Blitz-September-05-2023"]
[Site "Chess.com"]
[Date "2023.09.05"]
[Round "4"]
[White "dropstoneDP"]
[Black "hurricane7791"]
[Result "1-0"]
[WhiteElo "3021"]
[BlackElo "2717"]
[TimeControl "180+1"]
[EndTime "14:40:35 PDT"]
[Termination "dropstoneDP won on time"]

1. e4 {[%clk 0:02:59.3]} 1... c5 {[%clk 0:02:59.8]} 2. Nf3 {[%clk 0:02:59.1]}
2... d6 {[%clk 0:03:00.3]} 3. d4 {[%clk 0:02:58.5]} 3... cxd4 {[%clk 0:03:01.2]}
4. Nxd4 {[%clk 0:02:57.9]} 4... Nf6 {[%clk 0:03:01.7]} 5. Nc3 {[%clk 0:02:58.1]}
5... a6 {[%clk 0:03:02.3]} 6. Bg5 {[%clk 0:02:57.3]} 6... Nbd7 {[%clk
0:03:00.7]} 7. a3 {[%clk 0:02:57]} 7... g6 {[%clk 0:02:58.9]} 8. Bc4 {[%clk
0:02:55.4]} 8... Bg7 {[%clk 0:02:56.2]} 9. Qe2 {[%clk 0:02:55.7]} 9... h6 {[%clk
0:02:55.4]} 10. Bxf6 {[%clk 0:02:47.4]} 10... Nxf6 {[%clk 0:02:53.7]} 11. O-O-O
{[%clk 0:02:47.4]} 11... Qc7 {[%clk 0:02:52.3]} 12. Kb1 {[%clk 0:02:43.9]} 12...
Bd7 {[%clk 0:02:48.7]} 13. Bb3 {[%clk 0:02:40.8]} 13... Rb8 {[%clk 0:02:41.4]}
14. f4 {[%clk 0:02:40.6]} 14... e5 {[%clk 0:02:27]} 15. Nf3 {[%clk 0:02:38.3]}
15... O-O {[%clk 0:02:22.7]} 16. Qd2 {[%clk 0:02:17.7]} 16... exf4 {[%clk
0:02:18.3]} 17. Qxf4 {[%clk 0:02:18.3]} 17... Bc6 {[%clk 0:01:55.9]} 18. Rhe1
{[%clk 0:02:13.1]} 18... Rbe8 {[%clk 0:01:55.5]} 19. Rxd6 {[%clk 0:01:59.6]}
19... Nxe4 {[%clk 0:01:44.3]} 20. Nxe4 {[%clk 0:01:58.8]} 20... Rxe4 {[%clk
0:01:41.7]} 21. Rxe4 {[%clk 0:01:57]} 21... Bxe4 {[%clk 0:01:42.2]} 22. Rf6
{[%clk 0:01:31.5]} 22... Qxf4 {[%clk 0:01:27]} 23. Rxf4 {[%clk 0:01:32.4]} 23...
Bc6 {[%clk 0:01:26.9]} 24. h4 {[%clk 0:01:31.8]} 24... Bh8 {[%clk 0:01:16.3]}
25. g4 {[%clk 0:01:26.7]} 25... Bxf3 {[%clk 0:01:08.1]} 26. Rxf3 {[%clk
0:01:25.6]} 26... Be5 {[%clk 0:01:07.7]} 27. c3 {[%clk 0:01:23.8]} 27... Kg7
{[%clk 0:01:08]} 28. Rd3 {[%clk 0:01:19.5]} 28... Bf6 {[%clk 0:00:48.7]} 29. Rd7
{[%clk 0:01:17.8]} 29... Bxh4 {[%clk 0:00:46.7]} 30. Rxb7 {[%clk 0:01:17.6]}
30... Bg3 {[%clk 0:00:44.3]} 31. Ra7 {[%clk 0:01:15.2]} 31... h5 {[%clk
0:00:41]} 32. gxh5 {[%clk 0:01:16.1]} 32... gxh5 {[%clk 0:00:41.9]} 33. Rxa6
{[%clk 0:01:16.3]} 33... h4 {[%clk 0:00:42.6]} 34. Ra7 {[%clk 0:01:11]} 34...
Kg6 {[%clk 0:00:40.1]} 35. Bd5 {[%clk 0:01:09.2]} 35... h3 {[%clk 0:00:39.4]}
36. Rd7 {[%clk 0:00:55.7]} 36... h2 {[%clk 0:00:36.6]} 37. a4 {[%clk 0:00:56.1]}
37... f5 {[%clk 0:00:23.9]} 38. a5 {[%clk 0:00:56]} 38... Rh8 {[%clk 0:00:24.6]}
39. Bh1 {[%clk 0:00:54.5]} 39... Re8 {[%clk 0:00:25]} 40. Rd1 {[%clk 0:00:50]}
40... Kg5 {[%clk 0:00:20.4]} 41. a6 {[%clk 0:00:49.9]} 41... Bf2 {[%clk
0:00:20.9]} 42. Kc2 {[%clk 0:00:45.5]} 42... Kg4 {[%clk 0:00:20.9]} 43. b4
{[%clk 0:00:32.7]} 43... f4 {[%clk 0:00:21]} 44. c4 {[%clk 0:00:32.5]} 44... f3
{[%clk 0:00:19]} 45. c5 {[%clk 0:00:30]} 45... Be1 {[%clk 0:00:13.7]} 46. Rd7
{[%clk 0:00:18.9]} 46... Bxb4 {[%clk 0:00:11.7]} 47. Rg7+ {[%clk 0:00:18]} 47...
Kf4 {[%clk 0:00:10.8]} 48. Rf7+ {[%clk 0:00:18.1]} 48... Ke5 {[%clk 0:00:09.7]}
49. c6 {[%clk 0:00:13.5]} 49... Kd6 {[%clk 0:00:05.7]} 50. Bxf3 {[%clk
0:00:13.3]} 50... Bc5 {[%clk 0:00:04]} 51. a7 {[%clk 0:00:10.4]} 51... Ra8
{[%clk 0:00:02.1]} 52. c7 {[%clk 0:00:10.9]} 1-0

[Event "Late-Titled-Tuesday-Blitz-September-05-2023"]
[Site "Chess.com"]
[Date "2023.09.05"]
[Round "4"]
[White "RzayevB"]
[Black "chessisveryfun1264"]
[Result "0-1"]
[WhiteElo "2648"]
[BlackElo "2521"]
[TimeControl "180+1"]
[EndTime "14:40:35 PDT"]
[Termination "chessisveryfun1264 won by resignation"]

1. d4 {[%clk 0:03:00.9]} 1... e6 {[%clk 0:02:50.1]} 2. c4 {[%clk 0:02:58]} 2...
b6 {[%clk 0:02:48.6]} 3. e4 {[%clk 0:02:57.3]} 3... Bb4+ {[%clk 0:02:46]} 4. Bd2
{[%clk 0:02:55.7]} 4... Bxd2+ {[%clk 0:02:35.6]} 5. Nxd2 {[%clk 0:02:56.6]} 5...
d5 {[%clk 0:02:33.6]} 6. cxd5 {[%clk 0:02:53.7]} 6... exd5 {[%clk 0:02:34.5]} 7.
e5 {[%clk 0:02:54]} 7... Ne7 {[%clk 0:02:27.4]} 8. Ngf3 {[%clk 0:02:53.7]} 8...
O-O {[%clk 0:02:24.4]} 9. Bd3 {[%clk 0:02:54.2]} 9... c5 {[%clk 0:02:24.8]} 10.
O-O {[%clk 0:02:52]} 10... Bf5 {[%clk 0:02:23.8]} 11. Bxf5 {[%clk 0:02:47.9]}
11... Nxf5 {[%clk 0:02:24.7]} 12. dxc5 {[%clk 0:02:48.6]} 12... bxc5 {[%clk
0:02:24.5]} 13. Qc2 {[%clk 0:02:49.1]} 13... Qc8 {[%clk 0:02:18.4]} 14. Rac1
{[%clk 0:02:49.2]} 14... Na6 {[%clk 0:02:16.9]} 15. Nb3 {[%clk 0:02:40.2]} 15...
c4 {[%clk 0:02:11.1]} 16. Nbd4 {[%clk 0:02:40]} 16... Nxd4 {[%clk 0:02:08.9]}
17. Nxd4 {[%clk 0:02:40.9]} 17... Nb4 {[%clk 0:02:09.1]} 18. Qd2 {[%clk
0:02:27.7]} 18... Nd3 {[%clk 0:02:05.9]} 19. Rc3 {[%clk 0:02:26.5]} 19... Nxe5
{[%clk 0:02:03.1]} 20. Rg3 {[%clk 0:02:21.8]} 20... Qa6 {[%clk 0:02:01.6]} 21.
Nf5 {[%clk 0:02:17.4]} 21... Ng6 {[%clk 0:01:54.7]} 22. Qxd5 {[%clk 0:01:48.6]}
22... Qf6 {[%clk 0:01:44.5]} 23. Rc3 {[%clk 0:01:16.4]} 23... Rad8 {[%clk
0:01:37.1]} 24. Qf3 {[%clk 0:01:14.1]} 24... Kh8 {[%clk 0:01:29.7]} 25. Ne3
{[%clk 0:01:06]} 25... Qxf3 {[%clk 0:01:28.4]} 26. gxf3 {[%clk 0:01:06.9]} 26...
Rd3 {[%clk 0:01:01.6]} 27. Rxc4 {[%clk 0:00:47.4]} 27... Ne5 {[%clk 0:01:01.5]}
28. Rc7 {[%clk 0:00:44.3]} 28... a5 {[%clk 0:00:55.9]} 29. Rc5 {[%clk
0:00:33.1]} 29... Nxf3+ {[%clk 0:00:56.1]} 30. Kg2 {[%clk 0:00:33.4]} 30... Nh4+
{[%clk 0:00:45.5]} 31. Kg3 {[%clk 0:00:32.1]} 31... Ng6 {[%clk 0:00:46]} 32.
Rxa5 {[%clk 0:00:31.7]} 32... f5 {[%clk 0:00:45.3]} 33. Kg2 {[%clk 0:00:25.4]}
33... f4 {[%clk 0:00:45.3]} 34. Nc4 {[%clk 0:00:20.7]} 34... Nh4+ {[%clk
0:00:44.5]} 35. Kh1 {[%clk 0:00:20.2]} 35... Rfd8 {[%clk 0:00:45]} 36. Ne5
{[%clk 0:00:18.8]} 36... Rd1 {[%clk 0:00:42.5]} 37. Kg1 {[%clk 0:00:15.8]} 37...
Kg8 {[%clk 0:00:38.3]} 38. h3 {[%clk 0:00:11.5]} 38... R1d2 {[%clk 0:00:20.2]}
39. Nc6 {[%clk 0:00:09.9]} 39... R8d6 {[%clk 0:00:15.3]} 40. Ne7+ {[%clk
0:00:09.8]} 40... Kf7 {[%clk 0:00:15.6]} 41. Nf5 {[%clk 0:00:10.5]} 41... Rg6+
{[%clk 0:00:11]} 42. Kh1 {[%clk 0:00:10.7]} 42... Nf3 {[%clk 0:00:11.4]} 43. Ra4
{[%clk 0:00:05.9]} 43... Rxf2 {[%clk 0:00:10.8]} 44. Nd6+ {[%clk 0:00:06]} 44...
Ke6 {[%clk 0:00:07.4]} 45. Re4+ {[%clk 0:00:03.1]} 45... Kxd6 {[%clk 0:00:06.4]}
46. Rd1+ {[%clk 0:00:03.7]} 46... Kc5 {[%clk 0:00:05.7]} 47. b4+ {[%clk
0:00:02.9]} 47... Kc6 {[%clk 0:00:04.1]} 48. b5+ {[%clk 0:00:02.6]} 48... Kb6
{[%clk 0:00:03.8]} 49. Re6+ {[%clk 0:00:02.9]} 49... Rxe6 {[%clk 0:00:03.3]} 50.
Rd6+ {[%clk 0:00:03.2]} 50... Rxd6 {[%clk 0:00:03.8]} 0-1

[Event "Late-Titled-Tuesday-Blitz-September-05-2023"]
[Site "Chess.com"]
[Date "2023.09.05"]
[Round "4"]
[White "Payyappat"]
[Black "CFalcons8"]
[Result "1/2-1/2"]
[WhiteElo "2474"]
[BlackElo "2316"]
[TimeControl "180+1"]
[EndTime "14:40:36 PDT"]
[Termination "Game drawn by repetition"]

1. e4 {[%clk 0:03:00.9]} 1... e5 {[%clk 0:02:53]} 2. Nf3 {[%clk 0:03:00.3]} 2...
Nc6 {[%clk 0:02:50.9]} 3. Bc4 {[%clk 0:02:59.6]} 3... Nf6 {[%clk 0:02:50.5]} 4.
d4 {[%clk 0:02:58.5]} 4... exd4 {[%clk 0:02:48.8]} 5. e5 {[%clk 0:02:58.3]} 5...
d5 {[%clk 0:02:48.6]} 6. Bb5 {[%clk 0:02:57.5]} 6... Ne4 {[%clk 0:02:47.9]} 7.
Nxd4 {[%clk 0:02:56.5]} 7... Bd7 {[%clk 0:02:47.4]} 8. Bxc6 {[%clk 0:02:55]}
8... bxc6 {[%clk 0:02:48.3]} 9. c3 {[%clk 0:02:50.2]} 9... Bc5 {[%clk
0:02:44.1]} 10. O-O {[%clk 0:02:47.8]} 10... O-O {[%clk 0:02:39.4]} 11. f3
{[%clk 0:02:47.3]} 11... Ng5 {[%clk 0:02:37.8]} 12. f4 {[%clk 0:02:46.6]} 12...
Ne4 {[%clk 0:02:31.6]} 13. Nd2 {[%clk 0:02:43.8]} 13... Nxd2 {[%clk 0:02:15.9]}
14. Bxd2 {[%clk 0:02:44.7]} 14... Qe7 {[%clk 0:02:14.1]} 15. Be3 {[%clk
0:02:39.9]} 15... f6 {[%clk 0:02:12.3]} 16. Qh5 {[%clk 0:01:57.3]} 16... fxe5
{[%clk 0:01:54.1]} 17. fxe5 {[%clk 0:01:47.5]} 17... g6 {[%clk 0:01:47.7]} 18.
Qg5 {[%clk 0:01:46.1]} 18... Rxf1+ {[%clk 0:01:23.7]} 19. Rxf1 {[%clk
0:01:41.7]} 19... Qxg5 {[%clk 0:01:23.4]} 20. Bxg5 {[%clk 0:01:41.1]} 20... Rb8
{[%clk 0:01:23.4]} 21. Rf2 {[%clk 0:01:29.4]} 21... Re8 {[%clk 0:00:56]} 22. Bf6
{[%clk 0:01:17.6]} 22... Bb6 {[%clk 0:00:46.4]} 23. Kf1 {[%clk 0:01:03.9]} 23...
c5 {[%clk 0:00:45.3]} 24. Nc2 {[%clk 0:00:59.5]} 24... Bb5+ {[%clk 0:00:40.2]}
25. Ke1 {[%clk 0:00:57.7]} 25... d4 {[%clk 0:00:39.9]} 26. Rd2 {[%clk
0:00:27.8]} 26... Ba5 {[%clk 0:00:17.4]} 27. b4 {[%clk 0:00:18.2]} 27... dxc3
{[%clk 0:00:13.4]} 28. Rd5 {[%clk 0:00:17.7]} 28... Bc6 {[%clk 0:00:04.8]} 29.
Rxc5 {[%clk 0:00:17.6]} 29... Be4 {[%clk 0:00:04.3]} 30. bxa5 {[%clk 0:00:11.7]}
30... Bxc2 {[%clk 0:00:04.2]} 31. Rxc3 {[%clk 0:00:12.4]} 31... Be4 {[%clk
0:00:02.8]} 32. Rxc7 {[%clk 0:00:12.8]} 32... Bxg2 {[%clk 0:00:02.9]} 33. Rg7+
{[%clk 0:00:13.3]} 33... Kf8 {[%clk 0:00:02.7]} 34. Rxh7 {[%clk 0:00:13.6]}
34... Re6 {[%clk 0:00:02.6]} 35. Kf2 {[%clk 0:00:13.2]} 35... Bd5 {[%clk
0:00:02.6]} 36. Rxa7 {[%clk 0:00:13.5]} 36... Bxa2 {[%clk 0:00:02.3]} 37. a6
{[%clk 0:00:13.6]} 37... Bc4 {[%clk 0:00:03.2]} 38. Ke3 {[%clk 0:00:13.6]} 38...
Rxa6 {[%clk 0:00:03.2]} 39. Rxa6 {[%clk 0:00:13.6]} 39... Bxa6 {[%clk
0:00:04.1]} 40. Kf4 {[%clk 0:00:14.2]} 40... Kf7 {[%clk 0:00:03.6]} 41. Kg5
{[%clk 0:00:14.4]} 41... Bc8 {[%clk 0:00:03.8]} 42. Kf4 {[%clk 0:00:14.1]} 42...
Bf5 {[%clk 0:00:04.2]} 43. h4 {[%clk 0:00:13.3]} 43... Ke6 {[%clk 0:00:05.1]}
44. Kg5 {[%clk 0:00:13]} 44... Bd3 {[%clk 0:00:05.1]} 45. Kh6 {[%clk 0:00:12.9]}
45... Bc2 {[%clk 0:00:04.9]} 46. Kg7 {[%clk 0:00:13.1]} 46... Bd3 {[%clk
0:00:03.3]} 47. Kh6 {[%clk 0:00:13.6]} 47... Bf5 {[%clk 0:00:03.9]} 48. Kg5
{[%clk 0:00:14.5]} 48... Be4 {[%clk 0:00:04.2]} 49. Kf4 {[%clk 0:00:15.4]} 49...
Bc2 {[%clk 0:00:02.3]} 50. Bh8 {[%clk 0:00:15.1]} 50... Bd1 {[%clk 0:00:03.2]}
51. Kg5 {[%clk 0:00:15.1]} 51... Bh5 {[%clk 0:00:04.1]} 52. Bf6 {[%clk
0:00:14.8]} 52... Kd5 {[%clk 0:00:04]} 53. Kf4 {[%clk 0:00:15.7]} 53... Ke6
{[%clk 0:00:04.8]} 54. Ke4 {[%clk 0:00:16.6]} 54... Bg4 {[%clk 0:00:04.2]} 55.
Kd4 {[%clk 0:00:16.8]} 55... Bf5 {[%clk 0:00:05.1]} 56. Ke3 {[%clk 0:00:17.1]}
56... Bg4 {[%clk 0:00:05.7]} 57. Kf4 {[%clk 0:00:18]} 57... Bh5 {[%clk
0:00:06.4]} 58. Kg3 {[%clk 0:00:18.2]} 58... Kd5 {[%clk 0:00:06.8]} 59. Kf4
{[%clk 0:00:18.4]} 59... Ke6 {[%clk 0:00:06.8]} 1/2-1/2

[Event "Late-Titled-Tuesday-Blitz-September-05-2023"]
[Site "Chess.com"]
[Date "2023.09.05"]
[Round "4"]
[White "melissa_guez"]
[Black "Defenstrator"]
[Result "0-1"]
[WhiteElo "2002"]
[BlackElo "2306"]
[TimeControl "180+1"]
[EndTime "14:40:43 PDT"]
[Termination "Defenstrator won by resignation"]

1. e4 {[%clk 0:03:00.9]} 1... b6 {[%clk 0:02:57.4]} 2. d4 {[%clk 0:03:00.1]}
2... Ba6 {[%clk 0:02:57.5]} 3. Bxa6 {[%clk 0:02:58.7]} 3... Nxa6 {[%clk
0:02:58.4]} 4. Nf3 {[%clk 0:02:57.4]} 4... e6 {[%clk 0:02:58.1]} 5. O-O {[%clk
0:02:57.1]} 5... d5 {[%clk 0:02:58.1]} 6. exd5 {[%clk 0:02:52.2]} 6... Qxd5
{[%clk 0:02:53.8]} 7. Nc3 {[%clk 0:02:48.4]} 7... Qb7 {[%clk 0:02:50.1]} 8. d5
{[%clk 0:02:38.5]} 8... O-O-O {[%clk 0:02:49.3]} 9. Ne5 {[%clk 0:02:21.5]} 9...
c5 {[%clk 0:02:37]} 10. dxc6 {[%clk 0:01:58.4]} 10... Qc7 {[%clk 0:02:10.5]} 11.
Qe2 {[%clk 0:01:57.1]} 11... Nb4 {[%clk 0:01:50.7]} 12. Nb5 {[%clk 0:01:40.4]}
12... Qe7 {[%clk 0:01:50]} 13. c7 {[%clk 0:01:33.1]} 13... Rd5 {[%clk
0:01:41.7]} 14. a3 {[%clk 0:00:55]} 14... f6 {[%clk 0:01:21.8]} 15. axb4 {[%clk
0:00:20.3]} 15... Rxe5 {[%clk 0:01:03]} 16. Rxa7 {[%clk 0:00:18.6]} 16... Qd7
{[%clk 0:00:37.1]} 17. Qf3 {[%clk 0:00:13.1]} 17... Rd5 {[%clk 0:00:36.8]} 18.
c4 {[%clk 0:00:11.3]} 18... Ne7 {[%clk 0:00:28.7]} 19. cxd5 {[%clk 0:00:11.3]}
19... exd5 {[%clk 0:00:25.8]} 20. Qa3 {[%clk 0:00:09.2]} 20... Qxb5 {[%clk
0:00:20.3]} 21. Bf4 {[%clk 0:00:08.1]} 21... g5 {[%clk 0:00:13.5]} 22. Ra8+
{[%clk 0:00:08.3]} 22... Kd7 {[%clk 0:00:12.9]} 23. c8=Q+ {[%clk 0:00:08.6]}
23... Nxc8 {[%clk 0:00:13]} 24. Qe3 {[%clk 0:00:06.7]} 24... gxf4 {[%clk
0:00:11.1]} 25. Qxf4 {[%clk 0:00:07.1]} 25... Bd6 {[%clk 0:00:11.3]} 26. Qxf6
{[%clk 0:00:07.4]} 26... Rf8 {[%clk 0:00:09.1]} 27. Qh6 {[%clk 0:00:07]} 27...
Qe2 {[%clk 0:00:07.1]} 28. Qxh7+ {[%clk 0:00:06.2]} 28... Qe7 {[%clk 0:00:07]}
29. Qh3+ {[%clk 0:00:06]} 29... Qe6 {[%clk 0:00:07]} 30. Qh7+ {[%clk 0:00:05.7]}
30... Rf7 {[%clk 0:00:06.6]} 31. Qh4 {[%clk 0:00:05.5]} 31... Qe5 {[%clk
0:00:06.5]} 32. g3 {[%clk 0:00:05.2]} 32... Re7 {[%clk 0:00:05.8]} 33. Qg4+
{[%clk 0:00:05.5]} 33... Qe6 {[%clk 0:00:05.9]} 34. Qxe6+ {[%clk 0:00:05]} 34...
Rxe6 {[%clk 0:00:06.7]} 35. Rc1 {[%clk 0:00:05.3]} 35... Ne7 {[%clk 0:00:06.7]}
36. Ra7+ {[%clk 0:00:05.1]} 36... Ke8 {[%clk 0:00:06.1]} 37. Ra8+ {[%clk
0:00:04.1]} 37... Kf7 {[%clk 0:00:06.4]} 38. Ra6 {[%clk 0:00:04.1]} 38... Nf5
{[%clk 0:00:04.8]} 39. b5 {[%clk 0:00:04.5]} 39... Nd4 {[%clk 0:00:05.2]} 40.
Rxb6 {[%clk 0:00:04.4]} 40... Ne2+ {[%clk 0:00:05.4]} 41. Kg2 {[%clk 0:00:05]}
41... Nxc1 {[%clk 0:00:06]} 42. Rb7+ {[%clk 0:00:05.5]} 42... Kf6 {[%clk
0:00:06.5]} 43. b6 {[%clk 0:00:06]} 43... Bc5 {[%clk 0:00:07]} 44. Rb8 {[%clk
0:00:06.1]} 44... Rxb6 {[%clk 0:00:06.5]} 45. Rc8 {[%clk 0:00:06.6]} 45... Bd4
{[%clk 0:00:05.6]} 46. Rxc1 {[%clk 0:00:06.4]} 46... Rxb2 {[%clk 0:00:06.5]} 47.
Rc6+ {[%clk 0:00:05.8]} 47... Ke5 {[%clk 0:00:06.5]} 48. h4 {[%clk 0:00:05]}
48... Rxf2+ {[%clk 0:00:06.3]} 49. Kh3 {[%clk 0:00:05.4]} 49... Rf6 {[%clk
0:00:06.4]} 50. Rc1 {[%clk 0:00:04]} 50... Be3 {[%clk 0:00:05.6]} 51. Re1 {[%clk
0:00:04.1]} 51... d4 {[%clk 0:00:06.2]} 52. h5 {[%clk 0:00:04.4]} 52... Ke4
{[%clk 0:00:05.8]} 53. h6 {[%clk 0:00:04.5]} 53... Rxh6+ {[%clk 0:00:06]} 54.
Kg4 {[%clk 0:00:04.9]} 54... Rg6+ {[%clk 0:00:06.1]} 55. Kh5 {[%clk 0:00:04.8]}
55... Rxg3 {[%clk 0:00:05.8]} 0-1

[Event "Late-Titled-Tuesday-Blitz-September-05-2023"]
[Site "Chess.com"]
[Date "2023.09.05"]
[Round "4"]
[White "AradNazari"]
[Black "tptagain"]
[Result "0-1"]
[WhiteElo "2715"]
[BlackElo "2986"]
[TimeControl "180+1"]
[EndTime "14:40:46 PDT"]
[Termination "tptagain won by resignation"]

1. e4 {[%clk 0:03:00.5]} 1... c6 {[%clk 0:03:00.2]} 2. Nf3 {[%clk 0:03:00.2]}
2... d5 {[%clk 0:03:00.6]} 3. Nc3 {[%clk 0:03:00.9]} 3... Bg4 {[%clk 0:03:00.1]}
4. h3 {[%clk 0:02:59.4]} 4... Bxf3 {[%clk 0:03:00.4]} 5. Qxf3 {[%clk 0:03:00.3]}
5... e6 {[%clk 0:03:01]} 6. Be2 {[%clk 0:03:00]} 6... Bc5 {[%clk 0:02:56.9]} 7.
O-O {[%clk 0:02:58.4]} 7... Nd7 {[%clk 0:02:56.8]} 8. b4 {[%clk 0:02:20.8]} 8...
Bd4 {[%clk 0:02:33.1]} 9. b5 {[%clk 0:02:19.5]} 9... Ngf6 {[%clk 0:02:26.3]} 10.
Rb1 {[%clk 0:02:09.3]} 10... O-O {[%clk 0:02:11.7]} 11. bxc6 {[%clk 0:02:08.6]}
11... bxc6 {[%clk 0:02:12.6]} 12. Qd3 {[%clk 0:01:52.3]} 12... Bxc3 {[%clk
0:02:10.5]} 13. Qxc3 {[%clk 0:01:52.7]} 13... Nxe4 {[%clk 0:02:08.5]} 14. Qxc6
{[%clk 0:01:53.3]} 14... Rc8 {[%clk 0:02:06.3]} 15. Qa4 {[%clk 0:01:53.3]} 15...
Ndc5 {[%clk 0:01:46]} 16. Qa3 {[%clk 0:01:41.2]} 16... d4 {[%clk 0:01:29.8]} 17.
Re1 {[%clk 0:01:19.9]} 17... Qc7 {[%clk 0:01:20.6]} 18. Bf3 {[%clk 0:01:18]}
18... f5 {[%clk 0:00:50.3]} 19. d3 {[%clk 0:01:17]} 19... Nc3 {[%clk 0:00:48.9]}
20. Rb4 {[%clk 0:01:17.7]} 20... e5 {[%clk 0:00:47.7]} 21. Bd2 {[%clk
0:01:07.4]} 21... Qd6 {[%clk 0:00:12.5]} 22. Bxc3 {[%clk 0:00:41.6]} 22... dxc3
{[%clk 0:00:13.4]} 23. Rc4 {[%clk 0:00:41.4]} 23... Ne4 {[%clk 0:00:10.7]} 24.
Qxd6 {[%clk 0:00:28.6]} 24... Nxd6 {[%clk 0:00:11.6]} 25. Rxc8 {[%clk
0:00:26.9]} 25... Rxc8 {[%clk 0:00:12.5]} 26. Rxe5 {[%clk 0:00:27.4]} 26... Kf8
{[%clk 0:00:11.3]} 27. Rd5 {[%clk 0:00:25.4]} 27... Ke7 {[%clk 0:00:10]} 28. Ra5
{[%clk 0:00:24.4]} 28... Rc7 {[%clk 0:00:10.3]} 29. Bd5 {[%clk 0:00:22.8]} 29...
g5 {[%clk 0:00:09.3]} 30. g3 {[%clk 0:00:21.1]} 30... Kf6 {[%clk 0:00:09.4]} 31.
Kg2 {[%clk 0:00:18.3]} 31... h5 {[%clk 0:00:08.4]} 32. f4 {[%clk 0:00:17]} 32...
gxf4 {[%clk 0:00:08.7]} 33. gxf4 {[%clk 0:00:17.3]} 33... h4 {[%clk 0:00:09.6]}
34. Ra6 {[%clk 0:00:12.5]} 34... Ke7 {[%clk 0:00:09.6]} 35. Kf3 {[%clk
0:00:13.2]} 35... Nb5 {[%clk 0:00:10]} 36. Ke3 {[%clk 0:00:09.8]} 36... Kd8
{[%clk 0:00:10.1]} 37. Rf6 {[%clk 0:00:08.9]} 37... Re7+ {[%clk 0:00:10.2]} 38.
Re6 {[%clk 0:00:09.4]} 38... Rg7 {[%clk 0:00:07.8]} 39. Kf2 {[%clk 0:00:05.9]}
39... Nd4 {[%clk 0:00:06.7]} 40. Re1 {[%clk 0:00:03]} 40... Nxc2 {[%clk
0:00:06.1]} 41. Rc1 {[%clk 0:00:03.6]} 41... Nb4 {[%clk 0:00:06.6]} 42. Bc4
{[%clk 0:00:03.1]} 42... Rg3 {[%clk 0:00:05.1]} 43. a3 {[%clk 0:00:03.5]} 43...
Nc6 {[%clk 0:00:04.1]} 44. Rxc3 {[%clk 0:00:04]} 44... Rxh3 {[%clk 0:00:04.5]}
45. Bd5 {[%clk 0:00:04.6]} 45... Nd4 {[%clk 0:00:04.6]} 46. Bg2 {[%clk
0:00:04.5]} 46... Rg3 {[%clk 0:00:03.8]} 47. Rc5 {[%clk 0:00:03.1]} 47... Ke7
{[%clk 0:00:03.6]} 48. Re5+ {[%clk 0:00:03.3]} 48... Kf6 {[%clk 0:00:04.1]} 49.
Rd5 {[%clk 0:00:04]} 49... Ne6 {[%clk 0:00:04.6]} 50. Rd6 {[%clk 0:00:04.5]}
50... Ke7 {[%clk 0:00:05.1]} 51. Ra6 {[%clk 0:00:04.4]} 51... Nxf4 {[%clk
0:00:05.5]} 52. Rxa7+ {[%clk 0:00:05.1]} 52... Kf6 {[%clk 0:00:06.2]} 53. Bf3
{[%clk 0:00:05.7]} 53... Nxd3+ {[%clk 0:00:06.5]} 54. Ke3 {[%clk 0:00:05.8]}
54... Ne5 {[%clk 0:00:07]} 55. Ra6+ {[%clk 0:00:04]} 55... Kg5 {[%clk
0:00:07.4]} 0-1